[Event "Late-Titled-Tuesday-Blitz-June-04-2024"]
[Site "Chess.com"]
[Date "2024.06.04"]
[Round "10"]
[White "Romkachess"]
[Black "CrushingKings"]
[Result "0-1"]
[WhiteElo "2521"]
[BlackElo "2621"]
[TimeControl "180+1"]
[EndTime "15:52:18 PDT"]
[Termination "CrushingKings won by checkmate"]

1. e4 {[%clk 0:03:00.9]} 1... g6 {[%clk 0:02:52.6]} 2. d4 {[%clk 0:02:58.6]}
2... Bg7 {[%clk 0:02:53.5]} 3. Nc3 {[%clk 0:02:58.7]} 3... c6 {[%clk 0:02:54.3]}
4. Be3 {[%clk 0:02:59.1]} 4... d6 {[%clk 0:02:55.2]} 5. h4 {[%clk 0:02:58.7]}
5... d5 {[%clk 0:02:56.1]} 6. h5 {[%clk 0:02:57.2]} 6... dxe4 {[%clk 0:02:56.1]}
7. Nxe4 {[%clk 0:02:58.1]} 7... Nf6 {[%clk 0:02:56.5]} 8. Nxf6+ {[%clk
0:02:57.8]} 8... exf6 {[%clk 0:02:55.7]} 9. Qd2 {[%clk 0:02:58.4]} 9... g5
{[%clk 0:02:55.2]} 10. h6 {[%clk 0:02:54.3]} 10... Bf8 {[%clk 0:02:55.4]} 11.
Bc4 {[%clk 0:02:53.5]} 11... Be6 {[%clk 0:02:54.9]} 12. Bb3 {[%clk 0:02:51.7]}
12... Nd7 {[%clk 0:02:52.9]} 13. Ne2 {[%clk 0:02:51.6]} 13... Nb6 {[%clk
0:02:53.2]} 14. Ng3 {[%clk 0:02:51.6]} 14... Nd5 {[%clk 0:02:47.2]} 15. Ne4
{[%clk 0:02:51.3]} 15... Be7 {[%clk 0:02:47.1]} 16. O-O-O {[%clk 0:02:44.3]}
16... a5 {[%clk 0:02:45.5]} 17. c4 {[%clk 0:02:41.5]} 17... Nxe3 {[%clk
0:02:45.7]} 18. fxe3 {[%clk 0:02:42.4]} 18... a4 {[%clk 0:02:46.2]} 19. Bc2
{[%clk 0:02:41.2]} 19... Bxc4 {[%clk 0:02:46.8]} 20. Ng3 {[%clk 0:02:35.5]}
20... Bxa2 {[%clk 0:02:38.4]} 21. Nf5 {[%clk 0:02:30.1]} 21... Be6 {[%clk
0:02:38.3]} 22. Ng7+ {[%clk 0:02:28.8]} 22... Kf8 {[%clk 0:02:37.6]} 23. Qc3
{[%clk 0:01:57.4]} 23... Qb6 {[%clk 0:02:29.7]} 24. e4 {[%clk 0:01:48]} 24... a3
{[%clk 0:02:28]} 25. b3 {[%clk 0:01:44.5]} 25... a2 {[%clk 0:02:07.6]} 26. Kb2
{[%clk 0:01:35.4]} 26... Qa5 {[%clk 0:01:58.3]} 27. Qf3 {[%clk 0:01:25.2]} 27...
Ba3+ {[%clk 0:01:47.3]} 28. Ka1 {[%clk 0:01:24.7]} 28... Bg4 {[%clk 0:01:47.2]}
29. Qg3 {[%clk 0:00:59.9]} 29... Bxd1 {[%clk 0:01:45.2]} 30. Rxd1 {[%clk
0:01:00.8]} 30... Bb4 {[%clk 0:01:44.7]} 31. Rd3 {[%clk 0:01:00.5]} 31... Qa3
{[%clk 0:01:44.3]} 32. Qe3 {[%clk 0:00:49]} 32... Qb2+ {[%clk 0:01:44.1]} 33.
Kxb2 {[%clk 0:00:49.9]} 33... a1=Q# {[%clk 0:01:44.4]} 0-1

[Event "Late-Titled-Tuesday-Blitz-June-04-2024"]
[Site "Chess.com"]
[Date "2024.06.04"]
[Round "10"]
[White "AustinThomas12345"]
[Black "AndresDelgado77"]
[Result "1-0"]
[WhiteElo "2487"]
[BlackElo "2356"]
[TimeControl "180+1"]
[EndTime "15:52:22 PDT"]
[Termination "AustinThomas12345 won by resignation"]

1. e4 {[%clk 0:02:57.1]} 1... e6 {[%clk 0:02:52.8]} 2. d4 {[%clk 0:02:54.7]}
2... d5 {[%clk 0:02:38.8]} 3. e5 {[%clk 0:02:52.8]} 3... c5 {[%clk 0:02:37.2]}
4. c3 {[%clk 0:02:52.7]} 4... Nc6 {[%clk 0:02:37.1]} 5. Nf3 {[%clk 0:02:52.6]}
5... Qb6 {[%clk 0:02:37.2]} 6. a3 {[%clk 0:02:50.1]} 6... a5 {[%clk 0:02:36.7]}
7. Be2 {[%clk 0:02:45]} 7... Nh6 {[%clk 0:02:30.3]} 8. O-O {[%clk 0:02:42.8]}
8... cxd4 {[%clk 0:02:28.1]} 9. cxd4 {[%clk 0:02:42.2]} 9... Nf5 {[%clk
0:02:26]} 10. Nc3 {[%clk 0:02:25.9]} 10... Ncxd4 {[%clk 0:02:17.8]} 11. Nxd4
{[%clk 0:02:20.8]} 11... Qxd4 {[%clk 0:02:06.1]} 12. Bb5+ {[%clk 0:02:14.7]}
12... Bd7 {[%clk 0:02:05]} 13. Bxd7+ {[%clk 0:02:06.9]} 13... Kxd7 {[%clk
0:02:01.7]} 14. Qb3 {[%clk 0:02:07.4]} 14... Rb8 {[%clk 0:01:43.5]} 15. Qb5+
{[%clk 0:02:01.8]} 15... Kd8 {[%clk 0:01:36.6]} 16. Qxa5+ {[%clk 0:01:42.2]}
16... b6 {[%clk 0:01:29.7]} 17. Qa7 {[%clk 0:01:37.5]} 17... Rc8 {[%clk
0:01:28.3]} 18. Bg5+ {[%clk 0:01:28.4]} 18... Be7 {[%clk 0:01:21.6]} 19. Bxe7+
{[%clk 0:01:26.9]} 19... Nxe7 {[%clk 0:01:21.4]} 20. Nb5 {[%clk 0:01:24.4]}
20... Qc5 {[%clk 0:01:17.4]} 21. Nd6 {[%clk 0:01:22.5]} 21... Rf8 {[%clk
0:01:14.7]} 22. Nb7+ {[%clk 0:01:20.4]} 1-0

[Event "Late-Titled-Tuesday-Blitz-June-04-2024"]
[Site "Chess.com"]
[Date "2024.06.04"]
[Round "10"]
[White "Szparu"]
[Black "NikitaShnadrygin"]
[Result "1-0"]
[WhiteElo "2970"]
[BlackElo "2709"]
[TimeControl "180+1"]
[EndTime "15:52:36 PDT"]
[Termination "Szparu won by resignation"]

1. Nf3 {[%clk 0:03:00.9]} 1... Nf6 {[%clk 0:02:59.9]} 2. d4 {[%clk 0:03:00.8]}
2... g6 {[%clk 0:03:00.3]} 3. Bg5 {[%clk 0:03:01.4]} 3... Bg7 {[%clk 0:03:00.3]}
4. Nbd2 {[%clk 0:03:02]} 4... d5 {[%clk 0:02:59.8]} 5. c3 {[%clk 0:03:01.4]}
5... O-O {[%clk 0:02:59.6]} 6. e3 {[%clk 0:03:01.9]} 6... Ne4 {[%clk 0:02:58.8]}
7. Nxe4 {[%clk 0:03:01.3]} 7... dxe4 {[%clk 0:02:59.7]} 8. Nd2 {[%clk
0:03:01.8]} 8... h6 {[%clk 0:03:00.4]} 9. Bf4 {[%clk 0:03:01.4]} 9... f5 {[%clk
0:03:00.9]} 10. h4 {[%clk 0:03:01]} 10... Nc6 {[%clk 0:03:01.2]} 11. Nc4 {[%clk
0:02:51]} 11... Be6 {[%clk 0:02:56]} 12. b4 {[%clk 0:02:50.1]} 12... a6 {[%clk
0:02:54.5]} 13. a4 {[%clk 0:02:49.7]} 13... Kh7 {[%clk 0:02:51.7]} 14. b5 {[%clk
0:02:49.1]} 14... Nb8 {[%clk 0:02:45.9]} 15. Ne5 {[%clk 0:02:48.3]} 15... Nd7
{[%clk 0:02:43.5]} 16. bxa6 {[%clk 0:02:47.3]} 16... bxa6 {[%clk 0:02:37.6]} 17.
Nc6 {[%clk 0:02:46.7]} 17... Qe8 {[%clk 0:02:38.1]} 18. c4 {[%clk 0:02:39.6]}
18... Nc5 {[%clk 0:02:32]} 19. d5 {[%clk 0:02:27.2]} 19... Bxa1 {[%clk
0:02:18.3]} 20. Qxa1 {[%clk 0:02:28.1]} 20... Bd7 {[%clk 0:02:18.8]} 21. Ne5
{[%clk 0:02:27]} 21... h5 {[%clk 0:02:03.7]} 22. Be2 {[%clk 0:02:23.3]} 22...
Bxa4 {[%clk 0:02:02.5]} 23. Qa3 {[%clk 0:02:17.1]} 23... Nd3+ {[%clk 0:01:59]}
24. Bxd3 {[%clk 0:02:05.9]} 24... exd3 {[%clk 0:01:59.9]} 25. Nxd3 {[%clk
0:02:04.4]} 25... Bc2 {[%clk 0:01:49.8]} 26. Nc5 {[%clk 0:02:04.5]} 26... c6
{[%clk 0:01:40.7]} 27. Ne6 {[%clk 0:02:03]} 27... Rf6 {[%clk 0:01:38.1]} 28. Qc3
{[%clk 0:01:57.9]} 28... Be4 {[%clk 0:01:35.9]} 29. f3 {[%clk 0:01:48.4]} 29...
cxd5 {[%clk 0:01:34.5]} 30. Nc7 {[%clk 0:01:40.7]} 30... Qb8 {[%clk 0:01:05.4]}
31. O-O {[%clk 0:01:32.7]} 31... Ra7 {[%clk 0:01:05.6]} 32. Nxd5 {[%clk
0:01:20.5]} 1-0

[Event "Late-Titled-Tuesday-Blitz-June-04-2024"]
[Site "Chess.com"]
[Date "2024.06.04"]
[Round "10"]
[White "SahaNeelash"]
[Black "Maus7"]
[Result "1-0"]
[WhiteElo "2694"]
[BlackElo "2570"]
[TimeControl "180+1"]
[EndTime "15:52:51 PDT"]
[Termination "SahaNeelash won by checkmate"]

1. d4 {[%clk 0:03:00.9]} 1... Nf6 {[%clk 0:02:59.6]} 2. Bg5 {[%clk 0:03:01.3]}
2... e6 {[%clk 0:02:59.6]} 3. Nd2 {[%clk 0:03:00.6]} 3... c5 {[%clk 0:02:59.5]}
4. e4 {[%clk 0:03:00.3]} 4... h6 {[%clk 0:02:53.1]} 5. Bh4 {[%clk 0:03:00.1]}
5... d5 {[%clk 0:02:52.5]} 6. exd5 {[%clk 0:02:37.4]} 6... exd5 {[%clk
0:02:46.5]} 7. Bb5+ {[%clk 0:02:36.5]} 7... Nc6 {[%clk 0:02:46.7]} 8. Qe2+
{[%clk 0:02:36.7]} 8... Be6 {[%clk 0:02:45.1]} 9. Ngf3 {[%clk 0:02:33.2]} 9...
Bd6 {[%clk 0:02:43.8]} 10. dxc5 {[%clk 0:02:32.7]} 10... Bxc5 {[%clk 0:02:44]}
11. Nb3 {[%clk 0:02:33.4]} 11... Be7 {[%clk 0:02:16.2]} 12. Nfd4 {[%clk
0:02:27.1]} 12... Bd7 {[%clk 0:02:15.7]} 13. Bxf6 {[%clk 0:02:26.8]} 13... gxf6
{[%clk 0:02:14.1]} 14. O-O-O {[%clk 0:02:25.5]} 14... a6 {[%clk 0:01:56.4]} 15.
Bxc6 {[%clk 0:02:22]} 15... bxc6 {[%clk 0:01:54.8]} 16. Rhe1 {[%clk 0:02:22.7]}
16... Kf8 {[%clk 0:01:54.6]} 17. Na5 {[%clk 0:02:09.7]} 17... Rc8 {[%clk
0:01:32.3]} 18. Nb7 {[%clk 0:02:07.6]} 18... Qe8 {[%clk 0:01:32]} 19. Qf3 {[%clk
0:01:55.1]} 19... Rc7 {[%clk 0:01:31.7]} 20. Nd6 {[%clk 0:01:53.1]} 20... Qb8
{[%clk 0:01:29.2]} 21. N4f5 {[%clk 0:01:41.2]} 21... Bd8 {[%clk 0:01:25.8]} 22.
Qh5 {[%clk 0:01:37.9]} 22... Be6 {[%clk 0:01:02]} 23. Nd4 {[%clk 0:01:28.7]}
23... Re7 {[%clk 0:00:43.8]} 24. Rxe6 {[%clk 0:01:14.5]} 24... fxe6 {[%clk
0:00:37.9]} 25. Nxe6+ {[%clk 0:01:14.4]} 25... Kg8 {[%clk 0:00:38.2]} 26. Qg6+
{[%clk 0:01:14.3]} 26... Rg7 {[%clk 0:00:36.1]} 27. Qxg7# {[%clk 0:01:14.5]} 1-0

[Event "Late-Titled-Tuesday-Blitz-June-04-2024"]
[Site "Chess.com"]
[Date "2024.06.04"]
[Round "10"]
[White "Timurist"]
[Black "Heydarli77"]
[Result "0-1"]
[WhiteElo "2341"]
[BlackElo "2464"]
[TimeControl "180+1"]
[EndTime "15:52:58 PDT"]
[Termination "Heydarli77 won by resignation"]

1. e4 {[%clk 0:03:00.9]} 1... c5 {[%clk 0:02:58.9]} 2. Nc3 {[%clk 0:03:00.8]}
2... Nc6 {[%clk 0:02:57.8]} 3. f4 {[%clk 0:03:01.3]} 3... d6 {[%clk 0:02:56.5]}
4. Nf3 {[%clk 0:03:01.6]} 4... g6 {[%clk 0:02:56.6]} 5. Bb5 {[%clk 0:03:01.9]}
5... Bg7 {[%clk 0:02:56.2]} 6. O-O {[%clk 0:03:02]} 6... e6 {[%clk 0:02:55.5]}
7. Bxc6+ {[%clk 0:03:01.1]} 7... bxc6 {[%clk 0:02:54.8]} 8. d3 {[%clk
0:02:59.5]} 8... Ne7 {[%clk 0:02:54.5]} 9. Be3 {[%clk 0:02:35.2]} 9... O-O
{[%clk 0:02:49.4]} 10. Rb1 {[%clk 0:02:27.7]} 10... Qa5 {[%clk 0:02:46]} 11. Qd2
{[%clk 0:02:25.2]} 11... Bd7 {[%clk 0:02:38.1]} 12. e5 {[%clk 0:02:18.9]} 12...
Nf5 {[%clk 0:02:27.2]} 13. Bf2 {[%clk 0:02:16.2]} 13... d5 {[%clk 0:02:19.9]}
14. b3 {[%clk 0:02:10.4]} 14... Qb4 {[%clk 0:02:09.2]} 15. Na4 {[%clk
0:02:06.8]} 15... Nd4 {[%clk 0:02:01.4]} 16. Bxd4 {[%clk 0:01:33]} 16... Qxd2
{[%clk 0:01:59.5]} 17. Nxd2 {[%clk 0:01:33.9]} 17... cxd4 {[%clk 0:01:59.6]} 18.
Nf3 {[%clk 0:01:34.5]} 18... Rfc8 {[%clk 0:01:54.3]} 19. Nc5 {[%clk 0:01:34.4]}
19... Be8 {[%clk 0:01:53.2]} 20. Nxd4 {[%clk 0:01:35]} 20... Bf8 {[%clk
0:01:51.4]} 21. b4 {[%clk 0:01:35.5]} 21... a5 {[%clk 0:01:50.3]} 22. a3 {[%clk
0:01:33.2]} 22... axb4 {[%clk 0:01:48.3]} 23. axb4 {[%clk 0:01:34.1]} 23... Rcb8
{[%clk 0:01:48.4]} 24. c3 {[%clk 0:01:15.7]} 24... Ra3 {[%clk 0:01:45.9]} 25.
Rfc1 {[%clk 0:00:57.6]} 25... Rba8 {[%clk 0:01:43]} 26. Ndb3 {[%clk 0:00:50]}
26... Kg7 {[%clk 0:01:40.6]} 27. Na5 {[%clk 0:00:33.5]} 27... Bxc5+ {[%clk
0:01:37.3]} 28. d4 {[%clk 0:00:28.7]} 28... Bb6 {[%clk 0:01:32.5]} 29. Ra1
{[%clk 0:00:28.7]} 29... Rxc3 {[%clk 0:01:28.6]} 30. Rxc3 {[%clk 0:00:25.1]}
30... Bxd4+ {[%clk 0:01:27.6]} 0-1

[Event "Late-Titled-Tuesday-Blitz-June-04-2024"]
[Site "Chess.com"]
[Date "2024.06.04"]
[Round "10"]
[White "andrejljepic"]
[Black "VladimirBugayev"]
[Result "1-0"]
[WhiteElo "2438"]
[BlackElo "2342"]
[TimeControl "180+1"]
[EndTime "15:53:05 PDT"]
[Termination "andrejljepic won by checkmate"]

1. d4 {[%clk 0:03:00.9]} 1... Nf6 {[%clk 0:02:59.3]} 2. Bg5 {[%clk 0:03:00.8]}
2... d5 {[%clk 0:02:50.7]} 3. Bxf6 {[%clk 0:03:00.2]} 3... exf6 {[%clk
0:02:50.6]} 4. e3 {[%clk 0:03:00.8]} 4... Bd6 {[%clk 0:02:48.6]} 5. c4 {[%clk
0:03:00.9]} 5... dxc4 {[%clk 0:02:48.8]} 6. Bxc4 {[%clk 0:03:01]} 6... Nd7
{[%clk 0:02:43.1]} 7. Nc3 {[%clk 0:02:59.3]} 7... c6 {[%clk 0:02:43.2]} 8. Nf3
{[%clk 0:02:45.8]} 8... f5 {[%clk 0:02:40.5]} 9. O-O {[%clk 0:02:44.9]} 9... Nf6
{[%clk 0:02:35]} 10. a4 {[%clk 0:02:29]} 10... a5 {[%clk 0:02:30.6]} 11. Ne5
{[%clk 0:02:26.4]} 11... O-O {[%clk 0:01:50.5]} 12. f4 {[%clk 0:02:25.6]} 12...
Bb4 {[%clk 0:01:32.7]} 13. Qb3 {[%clk 0:02:07.2]} 13... Qe7 {[%clk 0:01:27.2]}
14. Rad1 {[%clk 0:02:05.8]} 14... Be6 {[%clk 0:01:26.1]} 15. Bxe6 {[%clk
0:02:04.9]} 15... fxe6 {[%clk 0:01:26.1]} 16. Nd3 {[%clk 0:01:49]} 16... Nd5
{[%clk 0:01:14.1]} 17. Nxd5 {[%clk 0:01:43.3]} 17... exd5 {[%clk 0:01:13.6]} 18.
Ne5 {[%clk 0:01:41.9]} 18... Kh8 {[%clk 0:01:04.7]} 19. Rf3 {[%clk 0:01:40.8]}
19... g5 {[%clk 0:01:02.1]} 20. Rh3 {[%clk 0:01:33.2]} 20... Rg8 {[%clk
0:00:49.1]} 21. Rf1 {[%clk 0:01:26.2]} 21... Raf8 {[%clk 0:00:44]} 22. fxg5
{[%clk 0:01:06.4]} 22... Rxg5 {[%clk 0:00:41.4]} 23. Rf4 {[%clk 0:01:02.8]}
23... Bd6 {[%clk 0:00:39.5]} 24. Rfh4 {[%clk 0:01:01.4]} 24... Rg7 {[%clk
0:00:31.8]} 25. Rxh7+ {[%clk 0:01:01.5]} 25... Kg8 {[%clk 0:00:28.9]} 26. Rh8#
{[%clk 0:01:01.3]} 1-0

[Event "Late-Titled-Tuesday-Blitz-June-04-2024"]
[Site "Chess.com"]
[Date "2024.06.04"]
[Round "10"]
[White "Squirlolz"]
[Black "pirulillo"]
[Result "1-0"]
[WhiteElo "2509"]
[BlackElo "2376"]
[TimeControl "180+1"]
[EndTime "15:53:10 PDT"]
[Termination "Squirlolz won by resignation"]

1. e4 {[%clk 0:03:00.9]} 1... c5 {[%clk 0:02:59.4]} 2. d3 {[%clk 0:02:59.8]}
2... Nc6 {[%clk 0:02:58.5]} 3. Nd2 {[%clk 0:03:00.1]} 3... g6 {[%clk 0:02:58.1]}
4. f4 {[%clk 0:03:00.5]} 4... Bg7 {[%clk 0:02:58.3]} 5. Ndf3 {[%clk 0:03:01.1]}
5... e6 {[%clk 0:02:57.9]} 6. h4 {[%clk 0:03:01.4]} 6... h5 {[%clk 0:02:57.4]}
7. Nh3 {[%clk 0:03:01.6]} 7... Nf6 {[%clk 0:02:56.9]} 8. Be2 {[%clk 0:03:01.2]}
8... Ng4 {[%clk 0:02:57]} 9. O-O {[%clk 0:03:01.2]} 9... d5 {[%clk 0:02:57.2]}
10. Qe1 {[%clk 0:03:01]} 10... dxe4 {[%clk 0:02:50.6]} 11. dxe4 {[%clk
0:03:01.2]} 11... Nd4 {[%clk 0:02:51.4]} 12. Bd1 {[%clk 0:03:00.2]} 12... Nxf3+
{[%clk 0:02:20.3]} 13. Bxf3 {[%clk 0:02:59.3]} 13... e5 {[%clk 0:02:19.3]} 14.
c3 {[%clk 0:02:55.1]} 14... O-O {[%clk 0:02:16.3]} 15. Ng5 {[%clk 0:02:42.6]}
15... exf4 {[%clk 0:02:13.3]} 16. Bxf4 {[%clk 0:02:41.7]} 16... Ne5 {[%clk
0:02:07.1]} 17. Rd1 {[%clk 0:02:41.2]} 17... Qe7 {[%clk 0:02:03.6]} 18. Qg3
{[%clk 0:02:36.4]} 18... b6 {[%clk 0:01:57.7]} 19. Rd5 {[%clk 0:02:34.6]} 19...
Re8 {[%clk 0:01:53.6]} 20. Bd1 {[%clk 0:02:13.3]} 20... Bb7 {[%clk 0:01:50.4]}
21. Rd2 {[%clk 0:02:09.2]} 21... Rf8 {[%clk 0:01:47.3]} 22. Qh3 {[%clk
0:01:46.5]} 22... Nc4 {[%clk 0:01:44.7]} 23. Rdf2 {[%clk 0:01:43.6]} 23... f6
{[%clk 0:01:39.3]} 24. Bb3 {[%clk 0:01:41.5]} 24... b5 {[%clk 0:01:38.2]} 25.
Qe6+ {[%clk 0:01:32.8]} 25... Qxe6 {[%clk 0:01:35.9]} 26. Nxe6 {[%clk
0:01:33.7]} 26... Bxe4 {[%clk 0:01:34]} 27. Nxc5 {[%clk 0:01:29.8]} 27... Bf5
{[%clk 0:01:30.2]} 28. a4 {[%clk 0:01:21.8]} 28... a6 {[%clk 0:01:29.6]} 29.
Nxa6 {[%clk 0:01:21.9]} 29... Kh7 {[%clk 0:01:23.6]} 30. axb5 {[%clk 0:01:21.3]}
30... Nb6 {[%clk 0:01:22.4]} 31. c4 {[%clk 0:01:17.1]} 31... Be4 {[%clk
0:01:16.2]} 32. c5 {[%clk 0:01:14.1]} 32... Nd5 {[%clk 0:01:15.4]} 33. Bxd5
{[%clk 0:01:13.6]} 33... Bxd5 {[%clk 0:01:14.9]} 34. Nc7 {[%clk 0:01:14.5]}
34... Rad8 {[%clk 0:01:14.7]} 35. Bd6 {[%clk 0:01:10.2]} 35... Bc4 {[%clk
0:01:11]} 36. Bxf8 {[%clk 0:01:07.5]} 36... Bxf8 {[%clk 0:01:10.1]} 37. b4
{[%clk 0:00:53.4]} 37... Bxf1 {[%clk 0:01:08]} 38. Kxf1 {[%clk 0:00:52.8]} 38...
Rd4 {[%clk 0:01:07]} 39. Ne6 {[%clk 0:00:50.9]} 1-0

[Event "Late-Titled-Tuesday-Blitz-June-04-2024"]
[Site "Chess.com"]
[Date "2024.06.04"]
[Round "10"]
[White "jk13"]
[Black "ZverevLev"]
[Result "0-1"]
[WhiteElo "2675"]
[BlackElo "2674"]
[TimeControl "180+1"]
[EndTime "15:53:19 PDT"]
[Termination "ZverevLev won by checkmate"]

1. e4 {[%clk 0:02:58.2]} 1... c5 {[%clk 0:02:59.6]} 2. c3 {[%clk 0:02:57.8]}
2... e5 {[%clk 0:02:58.5]} 3. Nf3 {[%clk 0:02:56.8]} 3... Nc6 {[%clk 0:02:57.9]}
4. Bc4 {[%clk 0:02:56.1]} 4... d6 {[%clk 0:02:55.9]} 5. d3 {[%clk 0:02:53.4]}
5... h6 {[%clk 0:02:55]} 6. O-O {[%clk 0:02:53.1]} 6... g5 {[%clk 0:02:54.9]} 7.
a4 {[%clk 0:02:48.3]} 7... Bg7 {[%clk 0:02:54.7]} 8. Na3 {[%clk 0:02:40.1]} 8...
Nge7 {[%clk 0:02:54.3]} 9. Nc2 {[%clk 0:02:40.2]} 9... Ng6 {[%clk 0:02:53.5]}
10. Ne3 {[%clk 0:02:40.6]} 10... Be6 {[%clk 0:02:52.8]} 11. Nd2 {[%clk
0:02:19.6]} 11... Qd7 {[%clk 0:02:46.6]} 12. a5 {[%clk 0:02:19.4]} 12... h5
{[%clk 0:02:45.5]} 13. Qa4 {[%clk 0:02:17.2]} 13... Nf4 {[%clk 0:02:42.3]} 14.
Nd5 {[%clk 0:01:52.4]} 14... Bxd5 {[%clk 0:01:52.7]} 15. exd5 {[%clk 0:01:51.1]}
15... Qg4 {[%clk 0:01:52.5]} 16. g3 {[%clk 0:01:51.7]} 16... h4 {[%clk
0:01:50.4]} 17. dxc6 {[%clk 0:01:23.2]} 17... hxg3 {[%clk 0:01:27.3]} 18. cxb7+
{[%clk 0:01:20]} 18... Ke7 {[%clk 0:01:26.9]} 19. bxa8=Q {[%clk 0:00:44.2]}
19... Ne2+ {[%clk 0:01:10.2]} 20. Kh1 {[%clk 0:00:36]} 20... Qe4+ {[%clk
0:01:00.8]} 21. Nf3 {[%clk 0:00:17]} 21... Qxf3+ {[%clk 0:00:55.9]} 22. Qxf3
{[%clk 0:00:16.1]} 22... Rxh2# {[%clk 0:00:55.7]} 0-1

[Event "Late-Titled-Tuesday-Blitz-June-04-2024"]
[Site "Chess.com"]
[Date "2024.06.04"]
[Round "10"]
[White "ChempionBg"]
[Black "nitpicker"]
[Result "1-0"]
[WhiteElo "2257"]
[BlackElo "2305"]
[TimeControl "180+1"]
[EndTime "15:53:28 PDT"]
[Termination "ChempionBg won by checkmate"]

1. d4 {[%clk 0:02:52.8]} 1... Nf6 {[%clk 0:02:59.1]} 2. c4 {[%clk 0:02:52.9]}
2... e6 {[%clk 0:02:59.5]} 3. Nf3 {[%clk 0:02:53.5]} 3... d5 {[%clk 0:02:55.4]}
4. g3 {[%clk 0:02:53.9]} 4... Bb4+ {[%clk 0:02:52.9]} 5. Bd2 {[%clk 0:02:52.8]}
5... Be7 {[%clk 0:02:53.3]} 6. Bg2 {[%clk 0:02:52.3]} 6... c6 {[%clk 0:02:53.9]}
7. O-O {[%clk 0:02:52.5]} 7... O-O {[%clk 0:02:54.1]} 8. Nc3 {[%clk 0:02:50.1]}
8... b6 {[%clk 0:02:54.2]} 9. Bf4 {[%clk 0:02:49.1]} 9... Ba6 {[%clk 0:02:47.4]}
10. cxd5 {[%clk 0:02:48.4]} 10... cxd5 {[%clk 0:02:46.9]} 11. Ne5 {[%clk
0:02:47.8]} 11... Bb7 {[%clk 0:02:44.1]} 12. Rc1 {[%clk 0:02:46.2]} 12... a6
{[%clk 0:02:20.4]} 13. a3 {[%clk 0:02:35.4]} 13... b5 {[%clk 0:02:18.4]} 14. b4
{[%clk 0:02:33.4]} 14... h6 {[%clk 0:02:14.6]} 15. Qc2 {[%clk 0:02:16.9]} 15...
Qb6 {[%clk 0:02:12.2]} 16. Nb1 {[%clk 0:02:08.1]} 16... Rc8 {[%clk 0:01:53.2]}
17. Qxc8+ {[%clk 0:01:50.8]} 17... Bxc8 {[%clk 0:01:53.8]} 18. Rxc8+ {[%clk
0:01:50.2]} 18... Kh7 {[%clk 0:01:40.8]} 19. Nxf7 {[%clk 0:01:49.3]} 19... Qb7
{[%clk 0:01:28.8]} 20. Rh8+ {[%clk 0:00:16.8]} 20... Kg6 {[%clk 0:01:27.6]} 21.
Ne5+ {[%clk 0:00:17.4]} 21... Kf5 {[%clk 0:00:52.8]} 22. Bh3+ {[%clk 0:00:14.5]}
22... Ke4 {[%clk 0:00:52.6]} 23. f3+ {[%clk 0:00:14.7]} 23... Kxd4 {[%clk
0:00:51.8]} 24. Rd1# {[%clk 0:00:14.5]} 1-0

[Event "Late-Titled-Tuesday-Blitz-June-04-2024"]
[Site "Chess.com"]
[Date "2024.06.04"]
[Round "10"]
[White "TanitoluwaAps116"]
[Black "aghasiyevkamal"]
[Result "0-1"]
[WhiteElo "2683"]
[BlackElo "2632"]
[TimeControl "180+1"]
[EndTime "15:53:32 PDT"]
[Termination "aghasiyevkamal won by resignation"]

1. Nf3 {[%clk 0:03:00.9]} 1... Nf6 {[%clk 0:02:58]} 2. b3 {[%clk 0:03:00.7]}
2... g6 {[%clk 0:02:54.5]} 3. Bb2 {[%clk 0:03:01.6]} 3... Bg7 {[%clk 0:02:54.8]}
4. g3 {[%clk 0:03:00.8]} 4... O-O {[%clk 0:02:54.8]} 5. Bg2 {[%clk 0:03:01.4]}
5... d6 {[%clk 0:02:51.5]} 6. d4 {[%clk 0:03:01.3]} 6... e5 {[%clk 0:02:45.9]}
7. dxe5 {[%clk 0:03:01.4]} 7... dxe5 {[%clk 0:02:41.6]} 8. Qxd8 {[%clk
0:02:59.3]} 8... Rxd8 {[%clk 0:02:41.3]} 9. Bxe5 {[%clk 0:03:00.2]} 9... Nc6
{[%clk 0:02:40.4]} 10. Bb2 {[%clk 0:02:56.7]} 10... Nb4 {[%clk 0:02:39.9]} 11.
Na3 {[%clk 0:02:55.7]} 11... Ne4 {[%clk 0:02:38.7]} 12. Bxg7 {[%clk 0:02:53.5]}
12... Kxg7 {[%clk 0:02:38.6]} 13. Ne5 {[%clk 0:02:47.5]} 13... Nc3 {[%clk
0:02:35.6]} 14. Nd3 {[%clk 0:02:47.2]} 14... a5 {[%clk 0:02:29.3]} 15. Kd2
{[%clk 0:02:35.7]} 15... Nbxa2 {[%clk 0:02:24.9]} 16. Nc4 {[%clk 0:02:09.3]}
16... Ra6 {[%clk 0:02:22.5]} 17. f4 {[%clk 0:01:52.9]} 17... f6 {[%clk
0:02:13.7]} 18. e4 {[%clk 0:01:52.3]} 18... b5 {[%clk 0:02:10.4]} 19. Ne3 {[%clk
0:01:50.2]} 19... b4 {[%clk 0:01:53.2]} 20. Rhe1 {[%clk 0:01:35.7]} 20... Bb7
{[%clk 0:01:46.3]} 21. Bh1 {[%clk 0:01:16.9]} 21... Bxe4 {[%clk 0:01:40.5]} 22.
Bxe4 {[%clk 0:01:10.6]} 22... Nxe4+ {[%clk 0:01:40.5]} 23. Ke2 {[%clk
0:01:11.5]} 23... a4 {[%clk 0:01:28.7]} 24. Kf3 {[%clk 0:00:59]} 24... axb3
{[%clk 0:01:14.1]} 25. Kxe4 {[%clk 0:00:56.3]} 25... Nc3+ {[%clk 0:01:13.6]} 26.
Kf3 {[%clk 0:00:54.1]} 26... Rxa1 {[%clk 0:01:13.4]} 27. Rxa1 {[%clk 0:00:54.9]}
27... Rxd3 {[%clk 0:01:13.4]} 28. cxd3 {[%clk 0:00:55.8]} 28... b2 {[%clk
0:01:13.7]} 29. Re1 {[%clk 0:00:54.2]} 29... b1=Q {[%clk 0:01:13.6]} 30. Rxb1
{[%clk 0:00:54.9]} 30... Nxb1 {[%clk 0:01:14.2]} 31. Nd5 {[%clk 0:00:43.3]}
31... b3 {[%clk 0:01:10.9]} 32. Ke2 {[%clk 0:00:19.1]} 32... b2 {[%clk
0:01:08.8]} 0-1